[Event "71st Greek Championship 2022"]
[Site "Athens"]
[Date "2022.12.11"]
[Round "9.5"]
[White "Moutousis, Konstantinos"]
[Black "Naoum, Spyridon"]
[Result "1-0"]
[ECO "A48"]
[WhiteElo "2392"]
[BlackElo "2352"]
[Annotator "TA"]
[PlyCount "77"]
[EventDate "2022.12.04"]
[EventType "tourn"]
[EventCountry "GRE"]
[SourceTitle "playchess.com"]
[Source "ChessBase"]
[SourceQuality "1"]
[TimeControl "40/5400+30:1800+30"]

{[%evp 11,77,-1,12,0,12,9,0,-6,0,0,17,9,56,34,41,20,58,20,28,-112,163,161,160,153,156,158,162,158,178,116,121,80,108,80,117,73,68,76,83,65,77,0,0,0,116,104,180,216,303,285,489,464,647,610,752,734,792,768,875,840,1592,1598,1416,1410,1689,1435,2126,1881]} 1. d4 {[%emt 0:05:15]} Nf6 {[%emt 0:00:10]} 2. Nf3 {[%emt 0:00:11]} g6 {[%emt 0:01:46]} 3. c3 {[%emt 0:00:25]} Bg7 {[%emt 0:04:11]} 4. Bf4 {[%emt 0:00:07]} d6 {[%emt 0:00:35]} 5. h3 {[%emt 0:00:15]} O-O {[%emt 0:00:28]} 6. e3 {[%emt 0:00:07]} Nc6 {[%emt 0:05:38]} 7. Bh2 {[%emt 0:01:42] A48: 1 d4 Nf6 2 Nf3 g6: Torre, London and Colle Systems.} Nd7 {[%emt 0:01:50]} 8. b4 {[%emt 0:08:09][%cal Bb2b4,Bb4b5][%mdl 32]} e5 {[%emt 0:05:31]} 9. b5 {[%emt 0:00:09] The position is equal.} Ne7 {[%emt 0:02:52]} 10. a4 {[%emt 0:00:05] [#]} h6 $146 {[%emt 0:02:45]} ({Predecessor:} 10... a6 11. Nbd2 axb5 12. Bxb5 c6 13. Be2 Nd5 14. Qc2 b5 15. c4 Nb4 16. Qb1 c5 17. cxb5 exd4 {0-1 (59) Bachmann,A (2648)-Baklan,V (2601) Linares 2017}) 11. Be2 {[%emt 0:00:09]} f5 {[%emt 0:00:25]} (11... Nf5 $11 {should be considered.}) 12. Qc2 {[%emt 0:01:28]} g5 {[%emt 0:01:32]} 13. Na3 {[%emt 0:01:18]} f4 {[%emt 0:11:39]} 14. exf4 {[%emt 0:01:56]} (14. O-O {simplifies} d5 15. Nxe5 Nxe5 16. dxe5 Bxe5 17. Bf3) 14... exf4 {[%emt 0:03:29]} 15. Kd2 {[%emt 0:03:34]} (15. O-O $11 {remains equal.}) 15... Ne5 $2 {[%emt 0:21:07][%mdl 8192]} 16. dxe5 $18 {[%emt 0:02:55]} dxe5+ {[%emt 0:00:46]} 17. Kc1 {[%emt 0:01:01]} Bf5 {[%emt 0:00:12]} 18. Qb3+ {[%emt 0:00:40]} Kh8 {[%emt 0:00:01]} 19. Rd1 {[%emt 0:02:04] Inhibits c6.} Qe8 {[%emt 0:00:01]} 20. Kb2 {[%emt 0:00:12]} (20. Nc4 $18) 20... Bh7 $16 {[%emt 0:25:28]} 21. Bc4 {[%emt 0:08:19]} (21. Qc4 {with more complications.} c6 22. Bd3 e4 23. Bxe4 Rc8 24. Bxh7 cxb5 25. Qxb5 Bxc3+ 26. Kb1) 21... Nf5 {[%emt 0:04:49]} 22. Bd5 {[%emt 0:02:12]} e4 {[%emt 0:00:52]} 23. Re1 {[%emt 0:02:23]} (23. Bxe4 {feels hotter.} Qxe4 24. Re1 Nd6 25. Rxe4 Nxe4 26. Nc4) 23... Nd6 {[%emt 0:03:58]} 24. Nc4 $1 {[%emt 0:00:06] Prevents c6. aiming for Nxd6.} Rd8 {[%emt 0:00:09]} 25. Nxd6 {[%emt 0:04:53]} Rxd6 {[%emt 0:00:30] [#]} 26. Bxb7 {[%emt 0:00:24]} (26. Rad1 $1 $16) 26... Qe7 $11 {[%emt 0:01:49]} 27. Qc4 {[%emt 0:03:22][%cal Re1e4] Black must now prevent Rxe4.} c6 {[%emt 0:00:51]} (27... Bg8 $1 $11 {keeps the balance.} 28. Rxe4 (28. Qxe4 $2 {loses.} Re6 $19) 28... Qf6) 28. Bxc6 $16 {[%emt 0:00:12]} Rc8 {[%emt 0:00:20]} (28... Bg8 $16 29. Rxe4 Qd8) 29. Nd4 $18 {[%emt 0:02:44]} Rcd8 {[%emt 0:00:14]} (29... Bxd4 {was worth a try.} 30. cxd4 Qf6) 30. Rad1 {[%emt 0:00:13]} a5 $2 {[%emt 0:00:59]} (30... Bf8) 31. g3 {[%emt 0:04:20] White is clearly winning.} (31. bxa6 Rb8+ 32. Bb5 Rxa6 $18) 31... Bg8 {[%emt 0:00:01]} 32. Rxe4 {[%emt 0:00:22]} Qxe4 {[%emt 0:00:50]} 33. Qxg8+ {[%emt 0:00:09]} ({Less strong is} 33. Bxe4 Bxc4 34. gxf4 Bxd4 35. Rxd4 (35. cxd4 Rxd4 36. Rxd4 Rxd4 $18) 35... Rxd4 36. cxd4 Rxd4 $18) 33... Kxg8 {[%emt 0:00:02]} 34. Bxe4 {[%emt 0:00:09]} Bxd4 {[%emt 0:00:09]} 35. cxd4 {[%emt 0:00:44]} Rxd4 {[%emt 0:00:02]} 36. Rxd4 {[%emt 0:01:07]} Rxd4 {[%emt 0:00:01]} 37. Bc2 {[%emt 0:01:59]} Kf7 {[%emt 0:00:46]} 38. gxf4 {[%emt 0:00:35] [#] And now Kc3 would win.} gxf4 {[%emt 0:00:03]} 39. Kc3 {[%emt 0:00:13] Weighted Error Value: White=0.21 (precise) /Black=0.52} 1-0